bitfinex/quotes_BTCUSD_20250527
["timestamp","ask_amount","ask_price","bid_price","bid_amount"]
[1748343919359,0.16555385,109590.0,109580.0,2.0833578]
[1748343919650,0.16855385,109590.0,109580.0,2.0833578]
[1748343919862,0.17155385,109590.0,109580.0,2.0833578]
[1748343920300,0.12597274,109590.0,109580.0,2.0924833]
[1748343920511,0.12597274,109590.0,109580.0,1.7433578]
[1748343921170,0.09987275,109590.0,109580.0,1.7433578]
[1748343921602,0.09987275,109590.0,109580.0,1.7524833]
[1748343921813,0.09987275,109590.0,109580.0,2.0489833]
[1748343923359,0.09987275,109590.0,109580.0,2.0348833]
[1748343924054,0.09987275,109590.0,109580.0,2.04400871]
[1748343924472,0.09987275,109590.0,109580.0,2.0348833]
[1748343924914,0.21160567,109600.0,109580.0,2.0531332]
[1748343925125,0.21899673,109590.0,109580.0,0.99693996]
[1748343925332,0.21899673,109590.0,109580.0,2.93190591]
[1748343926411,0.21899673,109590.0,109580.0,3.56825543]
[1748343927065,0.22812165,109590.0,109580.0,3.90825543]
[1748343927278,0.21087223,109590.0,109580.0,3.91838059]
[1748343927515,0.22912165,109590.0,109580.0,3.91838059]
[1748343927739,0.22912165,109590.0,109580.0,3.90428059]
[1748343927957,0.23012165,109590.0,109580.0,3.90528059]
[1748343928393,0.22418165,109590.0,109580.0,3.89615543]
[1748343929541,0.17884673,109590.0,109580.0,3.90528059]
[1748343929781,0.17158673,109590.0,109580.0,3.90528059]
[1748343930238,0.14343673,109590.0,109580.0,3.89615543]
[1748343930466,0.15256165,109590.0,109580.0,3.89615543]
[1748343930688,0.09785925,109590.0,109580.0,3.90528059]
[1748343930915,0.09785925,109590.0,109580.0,3.89615543]
[1748343930916,0.10698417,109590.0,109580.0,3.89615543]
[1748343931136,0.09785925,109590.0,109580.0,3.88968059]
[1748343931355,0.21160567,109600.0,109590.0,0.34]
[1748343931576,0.21160567,109600.0,109590.0,1.4352329]
[1748343931806,0.21160567,109600.0,109590.0,2.25408082]
[1748343932029,0.22985342,109600.0,109590.0,2.2997004]
[1748343932251,0.22985342,109600.0,109590.0,2.29057565]
[1748343932750,0.23085342,109600.0,109590.0,2.29157565]
[1748343932968,0.20035342,109600.0,109590.0,2.29157565]
[1748343933187,0.19122967,109600.0,109590.0,2.29157565]
[1748343933631,0.22252967,109600.0,109590.0,2.29157565]
[1748343933848,0.22352967,109600.0,109590.0,2.29157565]
[1748343934071,0.001,109600.0,109590.0,2.33414931]
[1748343934289,0.21085276,109600.0,109590.0,2.3341494]
[1748343934724,0.20072917,109600.0,109590.0,2.34327373]
[1748343935588,0.00552367,109600.0,109590.0,2.34327373]
[1748343935806,0.00552367,109600.0,109590.0,2.35907373]
[1748343936679,0.02377101,109600.0,109590.0,2.35907373]
[1748343937568,0.02377101,109600.0,109590.0,2.34327373]
[1748343938231,0.03289484,109600.0,109590.0,2.34327373]
[1748343939564,0.03289484,109600.0,109590.0,2.63977373]
[1748343942295,0.01464709,109600.0,109590.0,2.63977373]
[1748343942548,0.02377092,109600.0,109590.0,2.63977373]
[1748343942765,0.21537659,109600.0,109590.0,2.63977373]
[1748343943044,0.21537659,109600.0,109590.0,2.62457373]
[1748343943690,0.03289484,109600.0,109590.0,2.62457373]
[1748343944161,0.03289484,109600.0,109590.0,2.65374502]
[1748343947843,0.04939484,109600.0,109590.0,2.65374502]
[1748343948354,0.03289484,109600.0,109590.0,2.65374502]
[1748343949224,0.21537659,109600.0,109590.0,2.65374502]
[1748343949415,0.21537659,109600.0,109590.0,2.9300651]
[1748343950951,0.22450059,109600.0,109590.0,2.9300651]
[1748343951883,0.22450125,109600.0,109590.0,2.92094077]
[1748343952105,0.22450125,109600.0,109590.0,2.93006519]
[1748343954809,0.23407758,109600.0,109590.0,2.92094077]
[1748343955452,0.23407758,109600.0,109590.0,2.93006519]
[1748343957592,0.23407758,109600.0,109590.0,3.01418519]
[1748343966088,0.23407758,109600.0,109590.0,2.6450139]
[1748343966716,0.23407758,109600.0,109590.0,2.67417929]
[1748343967765,0.2249535,109600.0,109590.0,3.01417879]
[1748343968175,0.2249535,109600.0,109590.0,3.01417857]
[1748343968497,0.2249535,109600.0,109590.0,2.99592982]
[1748343968707,0.2249535,109600.0,109590.0,2.97588907]
[1748343969136,0.2249535,109600.0,109590.0,2.9850134]
[1748343969347,0.2249535,109600.0,109590.0,3.01417818]
[1748343971089,0.2249535,109600.0,109590.0,2.99616943]
[1748343971995,0.2399535,109600.0,109590.0,2.99616943]
[1748343972720,0.2399535,109600.0,109590.0,2.63548943]
[1748343972964,0.2399535,109600.0,109590.0,1.63932168]
[1748343972965,0.23082967,109600.0,109590.0,1.63932168]
[1748343973293,0.23082967,109600.0,109590.0,0.001]
[1748343973532,0.23082967,109600.0,109590.0,0.01557525]
[1748343975334,0.23082967,109600.0,109590.0,0.001]
[1748343975764,0.23082967,109600.0,109590.0,0.01192422]
[1748343976405,0.23082967,109600.0,109590.0,0.001]
[1748343977332,0.23082967,109600.0,109590.0,0.31917476]
[1748343977553,0.28064746,109600.0,109590.0,0.31917476]
[1748343977779,0.28064746,109600.0,109590.0,0.33009051]
[1748343978022,0.23082967,109600.0,109590.0,0.33009051]
[1748343980748,0.23082967,109600.0,109590.0,0.33008108]
[1748343982304,0.23082967,109600.0,109590.0,0.34112919]
[1748343984466,0.23082967,109600.0,109590.0,0.33022287]
[1748343985626,0.23082967,109600.0,109590.0,0.34112509]
[1748343987075,0.23082967,109600.0,109590.0,0.33022287]
[1748343990450,0.23082967,109600.0,109590.0,0.01104811]
[1748343990662,0.23082967,109600.0,109590.0,0.32922287]
[1748343990862,0.23082967,109600.0,109590.0,0.31817476]
[1748343995090,0.23082967,109600.0,109590.0,0.63634952]
[1748343995324,0.00912367,109600.0,109590.0,2.42120529]
[1748343995535,0.20985333,109600.0,109590.0,2.51853474]
[1748343995744,0.20985333,109600.0,109590.0,2.81503474]
[1748343996160,0.20985333,109600.0,109590.0,2.54695941]
[1748343996343,0.20985333,109600.0,109590.0,2.82411941]
[1748343996875,0.20985333,109600.0,109590.0,2.79396741]
[1748343997378,0.20985333,109600.0,109590.0,2.78484274]
[1748343997806,0.20985333,109600.0,109590.0,2.63256882]
[1748343998032,0.20985333,109600.0,109590.0,2.4197704]
[1748343998258,0.20985333,109600.0,109590.0,2.4288949]
[1748343998481,0.20985333,109600.0,109590.0,2.4453949]
[1748344003612,0.20985333,109600.0,109590.0,2.4288949]
[1748344004477,0.20985333,109600.0,109590.0,2.4197704]
[1748344004838,0.20985333,109600.0,109590.0,2.10159564]
[1748344005049,0.20985333,109600.0,109590.0,2.43431407]
[1748344006418,0.20072966,109600.0,109590.0,2.42518949]
[1748344006645,0.20072966,109600.0,109590.0,2.14802949]
[1748344006855,0.20072966,109600.0,109590.0,2.42498949]
[1748344007087,0.18248175,109600.0,109590.0,2.41586466]
[1748344007311,0.19768175,109600.0,109590.0,2.42498949]
[1748344007519,0.19768175,109600.0,109590.0,2.43411416]
[1748344007729,0.19768175,109600.0,109590.0,2.42498949]
[1748344009289,0.19768175,109600.0,109590.0,2.43411424]
[1748344009490,0.19768175,109600.0,109590.0,2.22424134]
[1748344010835,0.19768175,109600.0,109590.0,2.03184134]
[1748344011054,0.21378175,109600.0,109590.0,1.24933487]
[1748344011288,0.21378175,109600.0,109590.0,1.47681568]
[1748344011526,0.21378175,109600.0,109590.0,1.11489568]
[1748344011728,0.21378175,109600.0,109590.0,1.47681568]
[1748344012547,0.21378175,109600.0,109590.0,1.15864092]
[1748344013360,0.21378175,109600.0,109590.0,0.86214092]
[1748344014587,0.21378175,109600.0,109590.0,0.50022092]
[1748344014797,0.21378175,109600.0,109590.0,0.86214092]
[1748344015005,0.21378175,109600.0,109590.0,0.84759725]
[1748344027403,0.21378175,109600.0,109590.0,1.16577045]
[1748344028021,0.21378175,109600.0,109590.0,1.1549512]
[1748344032107,0.21378175,109600.0,109590.0,0.7930312]
[1748344032514,0.21378175,109600.0,109590.0,1.1545512]
[1748344034214,0.00912475,109590.0,109580.0,0.65390977]
[1748344034434,0.22192315,109590.0,109580.0,0.48734642]
[1748344034653,0.22192315,109590.0,109580.0,0.84890642]
[1748344035570,0.23204782,109590.0,109580.0,0.85090642]
[1748344035826,0.21187265,109590.0,109580.0,1.13556117]
[1748344036039,0.22099757,109590.0,109580.0,1.03497432]
[1748344036275,0.2118729,109590.0,109580.0,1.03497432]
[1748344037156,0.2275729,109590.0,109580.0,1.03497432]
[1748344037582,0.23344815,109590.0,109580.0,1.03497432]
[1748344037808,0.22432332,109590.0,109580.0,0.85278642]
[1748344039544,0.16432332,109590.0,109580.0,0.85278642]
[1748344040015,0.16432332,109590.0,109580.0,0.57586642]
[1748344040227,0.16432332,109590.0,109580.0,0.85274642]
[1748344040647,0.16432332,109590.0,109580.0,0.94380037]
[1748344041712,0.16432332,109590.0,109580.0,0.95836553]
[1748344042143,0.16432332,109590.0,109580.0,0.94380037]
[1748344043428,0.16432332,109590.0,109580.0,0.95836433]
[1748344043842,0.16432332,109590.0,109580.0,0.94380037]
[1748344044255,0.16432332,109590.0,109580.0,0.85274642]
[1748344047261,0.16432332,109590.0,109580.0,0.85258642]
[1748344049064,0.16432332,109590.0,109580.0,0.57586642]
[1748344049304,0.16432332,109590.0,109580.0,0.81807836]
[1748344049546,0.16432332,109590.0,109580.0,0.80351642]
[1748344050962,0.16432332,109590.0,109580.0,0.44227642]
[1748344051167,0.16432332,109590.0,109580.0,0.80347642]
[1748344055441,1.36200228,109590.0,109580.0,0.80347642]
[1748344055647,1.36200228,109590.0,109580.0,1.14347642]
[1748344065933,1.36200228,109590.0,109580.0,1.03328242]
[1748344067292,1.36200228,109590.0,109580.0,1.14739442]
[1748344070465,1.36200228,109590.0,109580.0,1.03328242]
[1748344072573,1.36200228,109590.0,109580.0,1.17309442]
[1748344075749,1.36200228,109590.0,109580.0,1.18372165]
[1748344089421,1.36200228,109590.0,109580.0,0.90728165]
[1748344089639,1.36200228,109590.0,109580.0,1.15459265]
[1748344090948,1.36200228,109590.0,109580.0,1.04390965]
[1748344097746,1.36200228,109590.0,109580.0,0.61938965]
[1748344099918,1.36200228,109590.0,109580.0,0.34294965]
[1748344100156,1.36200228,109590.0,109580.0,0.61938965]
[1748344101828,1.34042695,109590.0,109580.0,1.16880885]
[1748344102064,1.34042695,109590.0,109580.0,1.77615105]
[1748344102065,1.3495512,109590.0,109580.0,1.77615105]
[1748344102301,1.19776313,109590.0,109580.0,1.79440212]
[1748344102531,1.40763478,109590.0,109580.0,2.18002353]
[1748344102757,1.39591478,109590.0,109580.0,1.89445837]
[1748344102985,1.38494478,109590.0,109580.0,2.26430353]
[1748344103236,1.07334906,109590.0,109580.0,2.26430353]
[1748344103480,1.07334906,109590.0,109580.0,2.49934318]
[1748344103481,0.77695116,109590.0,109580.0,2.49934318]
[1748344103720,0.68364054,109590.0,109580.0,2.49934318]
[1748344104001,0.59510843,109590.0,109580.0,2.49934318]
[1748344104250,0.54952498,109590.0,109580.0,2.49934318]
[1748344104483,0.50535498,109590.0,109580.0,2.49934318]
[1748344104713,0.50028996,109590.0,109580.0,2.49934318]
[1748344104941,0.50032996,109590.0,109580.0,2.49934318]
[1748344105175,0.45475835,109590.0,109580.0,2.49934318]
[1748344105404,0.38297031,109590.0,109580.0,2.49934318]
[1748344105643,0.3373987,109590.0,109580.0,2.49934318]
[1748344105870,0.29182709,109590.0,109580.0,2.49934318]
[1748344106328,0.24625548,109590.0,109580.0,2.49934318]
[1748344106553,0.20068387,109590.0,109580.0,2.13862318]
[1748344106783,0.15511226,109590.0,109580.0,2.49934318]
[1748344107231,0.10954065,109590.0,109580.0,2.49934318]
[1748344107451,0.06396904,109590.0,109580.0,2.49934318]
[1748344107721,0.04557161,109590.0,109580.0,2.49934318]
[1748344107931,0.01839743,109590.0,109580.0,2.49934318]
[1748344108392,0.02737025,109600.0,109590.0,1.21771854]
[1748344108612,0.02737025,109600.0,109590.0,1.30877249]
[1748344108844,0.02737025,109600.0,109590.0,3.67790649]
[1748344109122,0.20362827,109610.0,109600.0,0.50977895]
[1748344109352,0.20362827,109610.0,109600.0,2.05088423]
[1748344109583,0.20362827,109610.0,109600.0,1.85927848]
[1748344109821,0.20362827,109610.0,109600.0,1.89576956]
[1748344110045,0.20362827,109610.0,109600.0,2.08737531]
[1748344110278,0.20362827,109610.0,109600.0,2.04834831]
[1748344110535,0.20462827,109610.0,109600.0,1.79860331]
[1748344111082,0.20462827,109610.0,109600.0,1.44394211]
[1748344111355,0.20462827,109610.0,109600.0,1.70312723]
[1748344111872,0.20662827,109610.0,109600.0,1.70412723]
[1748344112346,0.20662827,109610.0,109600.0,1.6895889]
[1748344113201,0.20662827,109610.0,109600.0,1.68046498]
[1748344113675,0.20662827,109610.0,109600.0,1.32440378]
[1748344113922,0.20662827,109610.0,109600.0,1.6517009]
[1748344114127,0.20662827,109610.0,109600.0,1.62701398]
[1748344114308,0.20662827,109610.0,109600.0,1.64155231]
[1748344114548,0.20662827,109610.0,109600.0,1.42624415]
[1748344115063,0.20662827,109610.0,109600.0,1.76624415]
[1748344115564,0.20662827,109610.0,109600.0,1.78077236]
[1748344115777,0.22232827,109610.0,109600.0,1.78077236]
[1748344116641,0.22232827,109610.0,109600.0,1.44077236]
[1748344117303,0.22232827,109610.0,109600.0,1.78077236]
[1748344119002,0.22232827,109610.0,109600.0,1.76624415]
[1748344119509,0.22232827,109610.0,109600.0,1.44807095]
[1748344119751,0.22232827,109610.0,109600.0,1.57219115]
[1748344119984,0.23762827,109610.0,109600.0,1.57219115]
[1748344120930,0.22232827,109610.0,109600.0,1.57219115]
[1748344122160,0.22232827,109610.0,109600.0,1.44352764]
[1748344122366,0.22232827,109610.0,109600.0,1.485422]
[1748344122789,0.2132051,109610.0,109600.0,1.21818456]
[1748344123060,0.2292051,109610.0,109600.0,1.37376556]
[1748344123332,0.2292051,109610.0,109600.0,1.34925656]
[1748344126563,0.2292051,109610.0,109600.0,1.30596956]
[1748344130460,0.2132051,109610.0,109600.0,1.30596956]
[1748344131186,0.2132051,109610.0,109600.0,1.2914422]
[1748344132979,0.20662827,109610.0,109600.0,1.2914422]
[1748344133199,0.20662827,109610.0,109600.0,1.32052372]
[1748344133637,0.22242827,109610.0,109600.0,1.32052372]
[1748344135014,0.23155119,109610.0,109600.0,1.32964772]
[1748344135258,0.21575119,109610.0,109600.0,1.32052372]
[1748344135735,0.23155119,109610.0,109600.0,1.99706172]
[1748344135970,0.23155119,109610.0,109600.0,1.87706172]
[1748344136439,0.23155119,109610.0,109600.0,1.71145372]
[1748344136692,0.23155119,109610.0,109600.0,1.85480472]
[1748344137975,0.23155119,109610.0,109600.0,1.90402472]
[1748344138723,0.23155119,109610.0,109600.0,1.73476572]
[1748344139189,0.23155119,109610.0,109600.0,1.63016572]
[1748344139880,0.23155119,109610.0,109600.0,1.81277672]
[1748344140354,0.23155119,109610.0,109600.0,1.38267572]
[1748344140355,0.22242827,109610.0,109600.0,1.38267572]
[1748344140889,0.23812827,109610.0,109600.0,1.60595572]
[1748344141387,0.23812827,109610.0,109600.0,1.48595572]
[1748344141595,0.23812827,109610.0,109600.0,1.44184472]
[1748344141810,0.23812827,109610.0,109600.0,1.60595572]
[1748344142333,0.23812827,109610.0,109600.0,1.44185472]
[1748344142579,0.2290051,109610.0,109600.0,1.44185472]
[1748344142801,0.2290051,109610.0,109600.0,1.55396572]
[1748344143952,0.2290051,109610.0,109600.0,1.07518172]
[1748344144172,0.2290051,109610.0,109600.0,1.61892872]
[1748344144391,0.2290051,109610.0,109600.0,1.54184872]
[1748344145054,0.2290051,109610.0,109600.0,1.55734772]
[1748344146759,0.2290051,109610.0,109600.0,1.5664718]
[1748344146975,0.2290051,109610.0,109600.0,2.37849755]
[1748344147200,0.2133051,109610.0,109600.0,2.18689172]
[1748344147476,0.2133051,109610.0,109600.0,2.07871272]
[1748344148137,0.2133051,109610.0,109600.0,1.93365972]
[1748344148771,0.2133051,109610.0,109600.0,1.92271272]
[1748344149421,0.2133051,109610.0,109600.0,1.93281186]
[1748344149636,0.2133051,109610.0,109600.0,1.60193594]
[1748344149862,0.2133051,109610.0,109600.0,1.59281186]
[1748344150066,0.2133051,109610.0,109600.0,1.74945786]
[1748344150279,0.2133051,109610.0,109600.0,1.93193961]
[1748344150498,0.2133051,109610.0,109600.0,1.94106361]
[1748344150930,0.2133051,109610.0,109600.0,1.94106369]
[1748344151161,0.2133051,109610.0,109600.0,2.16441269]
[1748344152040,0.2133051,109610.0,109600.0,1.92806794]
[1748344152251,0.2133051,109610.0,109600.0,1.80802894]
[1748344152944,0.2133051,109610.0,109600.0,1.81715294]
[1748344153166,0.2133051,109610.0,109600.0,1.93719194]
[1748344153860,0.2133051,109610.0,109600.0,1.84267369]
[1748344154081,0.2296051,109610.0,109600.0,1.46134794]
[1748344154329,0.2296051,109610.0,109600.0,1.43831386]
[1748344154545,0.2296051,109610.0,109600.0,1.44743794]
[1748344155185,0.2296051,109610.0,109600.0,1.66678794]
[1748344155393,0.2296051,109610.0,109600.0,1.55078794]
[1748344155634,0.2296051,109610.0,109600.0,1.48308794]
[1748344155855,0.2296051,109610.0,109600.0,1.47396386]
[1748344156074,0.2296051,109610.0,109600.0,1.48308794]
[1748344156423,0.2296051,109610.0,109600.0,1.43476386]
[1748344156640,0.2296051,109610.0,109600.0,1.44388794]
[1748344157284,0.2296051,109610.0,109600.0,1.48008794]
[1748344158070,0.2296051,109610.0,109600.0,1.19400386]
[1748344158291,0.2296051,109610.0,109600.0,1.35655286]
[1748344158518,0.2296051,109610.0,109600.0,1.36567694]
[1748344159287,0.2296051,109610.0,109600.0,1.52544194]
[1748344159495,0.2296051,109610.0,109600.0,1.51631786]
[1748344160411,0.2296051,109610.0,109600.0,1.55251686]
[1748344160630,0.2296051,109610.0,109600.0,1.52990686]
[1748344161210,0.2296051,109610.0,109600.0,1.51166286]
[1748344161428,0.2296051,109610.0,109600.0,1.55679886]
[1748344161637,0.2296051,109610.0,109600.0,1.52679886]
[1748344162349,0.2296051,109610.0,109600.0,1.60891586]
[1748344163292,0.2296051,109610.0,109600.0,1.86446994]
[1748344163784,0.2296051,109610.0,109600.0,1.84273486]
[1748344164208,0.2296051,109610.0,109600.0,1.81867986]
[1748344164422,0.2296051,109610.0,109600.0,1.62060186]
[1748344164633,0.2296051,109610.0,109600.0,1.57201086]
[1748344165291,0.2296051,109610.0,109600.0,1.90298394]
[1748344165494,0.2296051,109610.0,109600.0,1.77382086]
[1748344166381,0.2296051,109610.0,109600.0,1.89385986]
[1748344166598,0.2296051,109610.0,109600.0,1.74064086]
[1748344167239,0.2296051,109610.0,109600.0,1.57201086]
[1748344167447,0.2133051,109610.0,109600.0,2.24468869]
[1748344167692,0.2133051,109610.0,109600.0,1.85187086]
[1748344168469,0.2133051,109610.0,109600.0,1.73765186]
[1748344168899,0.2133051,109610.0,109600.0,1.85137594]
[1748344169118,0.2133051,109610.0,109600.0,2.00838886]
[1748344169565,0.2133051,109610.0,109600.0,2.20661686]
[1748344169813,0.2133051,109610.0,109600.0,2.01838886]
[1748344170015,0.2133051,109610.0,109600.0,2.21661386]
[1748344170275,0.2133051,109610.0,109600.0,2.13260786]
[1748344170518,0.02416283,109610.0,109600.0,2.66234431]
[1748344170755,0.03328533,109610.0,109600.0,3.01494281]
[1748344171010,0.04240825,109610.0,109600.0,3.20287781]
[1748344171236,8e-05,109620.0,109610.0,0.54983377]
[1748344171477,0.19825517,109640.0,109630.0,0.52243181]
[1748344171709,0.19825517,109640.0,109630.0,2.2903663]
[1748344171710,0.01584,109640.0,109630.0,2.2903663]
[1748344171958,0.209473,109650.0,109640.0,1.53586284]
[1748344172203,0.209473,109650.0,109640.0,1.4593892]
[1748344172896,0.20952272,109650.0,109640.0,1.2207412]
[1748344173119,0.21052272,109650.0,109640.0,1.1284132]
[1748344173551,0.21052272,109650.0,109640.0,1.14292655]
[1748344173758,0.21252272,109650.0,109640.0,1.18399513]
[1748344174405,0.21252272,109650.0,109640.0,1.15663713]
[1748344174608,0.22802272,109650.0,109640.0,1.15663713]
[1748344177476,0.22802272,109650.0,109640.0,0.83846393]
[1748344177703,0.22802272,109650.0,109640.0,1.15663713]
[1748344178357,0.22802272,109650.0,109640.0,1.1675298]
[1748344179754,0.22802272,109650.0,109640.0,1.16752802]
[1748344180875,0.22806272,109650.0,109640.0,1.16752802]
[1748344182935,0.22806272,109650.0,109640.0,0.80620802]
[1748344183153,0.22806272,109650.0,109640.0,1.21401602]
[1748344183374,0.22806272,109650.0,109640.0,1.21401184]
[1748344185686,0.22806272,109650.0,109640.0,0.94589991]
[1748344185910,0.22806272,109650.0,109640.0,1.06925491]
[1748344186131,0.22806272,109650.0,109640.0,1.06154991]
[1748344187001,0.22806272,109650.0,109640.0,1.06154968]
[1748344187219,0.22806272,109650.0,109640.0,1.06084068]
[1748344187656,0.22806272,109650.0,109640.0,0.7966587]
[1748344187873,0.22806272,109650.0,109640.0,0.6827477]
[1748344189883,0.22806272,109650.0,109640.0,0.44297068]
[1748344190546,0.22806272,109650.0,109640.0,0.32906225]
[1748344190977,0.19676272,109650.0,109640.0,0.48186325]
[1748344191415,0.21306272,109650.0,109640.0,0.4964166]
[1748344192076,0.21306272,109650.0,109640.0,0.50980845]
[1748344192508,0.19676272,109650.0,109640.0,0.50980845]
[1748344193444,0.19676272,109650.0,109640.0,0.59429459]
[1748344194104,0.19676272,109650.0,109640.0,3.21781755]
[1748344194105,0.20588231,109650.0,109640.0,3.21781755]
[1748344194341,0.21500223,109650.0,109640.0,2.40974305]
[1748344194592,0.02340865,109650.0,109640.0,2.52270189]
[1748344194814,0.03252841,109650.0,109640.0,2.52270189]
[1748344195030,0.03052841,109650.0,109640.0,2.81323489]
[1748344195255,0.03052841,109650.0,109640.0,2.46360589]
[1748344195470,0.03052841,109650.0,109640.0,2.13312889]
[1748344195922,0.02952841,109650.0,109640.0,2.13312889]
[1748344196138,0.02952841,109650.0,109640.0,2.47317844]
[1748344196361,0.02952841,109650.0,109640.0,2.47417844]
[1748344196593,0.02952841,109650.0,109640.0,2.30841944]
[1748344197244,0.19150082,109660.0,109650.0,0.58135731]
[1748344197457,0.20973825,109660.0,109650.0,2.96881887]
[1748344197683,0.20973825,109660.0,109650.0,2.98335099]
[1748344197931,0.20061966,109660.0,109650.0,2.62757489]
[1748344198183,0.20061966,109660.0,109650.0,2.74248565]
[1748344198438,0.20061966,109660.0,109650.0,2.63056165]
[1748344198672,0.20261966,109660.0,109650.0,2.63056165]
[1748344199117,0.20261966,109660.0,109650.0,2.76161965]
[1748344199335,0.20261966,109660.0,109650.0,2.66220016]
[1748344199558,0.20361966,109660.0,109650.0,2.66220016]
[1748344199775,0.20361966,109660.0,109650.0,2.54295965]
[1748344200028,0.13638446,109670.0,109660.0,0.92433527]
[1748344200268,0.13638446,109670.0,109660.0,2.93694603]
[1748344200616,0.13638446,109670.0,109660.0,2.91870843]
[1748344200618,0.13638446,109670.0,109660.0,2.92782727]
[1748344200844,0.13638446,109670.0,109660.0,2.93325581]
[1748344201030,0.13638446,109670.0,109660.0,2.94237482]
[1748344201300,0.13638446,109670.0,109660.0,1.99411274]
[1748344201785,0.13638446,109670.0,109660.0,1.88767274]
[1748344202037,0.18250089,109680.0,109670.0,0.57330154]
[1748344202289,0.19161823,109680.0,109670.0,3.03614836]
[1748344202529,0.01827395,109680.0,109670.0,2.68179012]
[1748344202777,0.01827386,109680.0,109670.0,2.6909078]
[1748344203023,0.02739104,109680.0,109670.0,2.6909078]
[1748344203263,0.02739104,109680.0,109670.0,2.78196175]
[1748344203264,0.0365083,109680.0,109670.0,2.78196175]
[1748344203494,0.0365083,109680.0,109670.0,4.11464237]
[1748344203727,0.02739112,109680.0,109670.0,4.09216537]
[1748344204208,0.00915668,109680.0,109670.0,4.09216537]
[1748344204434,0.20977465,109700.0,109690.0,0.56214862]
[1748344204686,0.20977465,109700.0,109690.0,2.44203397]
[1748344204907,0.210272,109700.0,109690.0,2.38496597]
[1748344205123,0.210272,109700.0,109690.0,2.16281735]
[1748344205341,0.20115673,109700.0,109690.0,1.62210788]
[1748344205571,0.20115673,109700.0,109690.0,1.1014116]
[1748344205790,0.20115673,109700.0,109690.0,1.31020294]
[1748344206035,0.20115673,109700.0,109690.0,1.31120294]
[1748344206264,0.20115673,109700.0,109690.0,1.29668503]
[1748344206476,0.20115673,109700.0,109690.0,1.29768503]
[1748344206684,0.20115673,109700.0,109690.0,1.36720303]
[1748344207674,0.20115673,109700.0,109690.0,1.59938203]
[1748344208053,0.20115673,109700.0,109690.0,1.56689518]
[1748344208768,0.20115673,109700.0,109690.0,1.59780318]
[1748344209001,0.01872805,109700.0,109690.0,1.84048398]
[1748344209231,0.00049735,109700.0,109690.0,1.9351351]
[1748344209461,0.00049735,109700.0,109690.0,1.9624771]
[1748344209690,0.01872764,109700.0,109690.0,6.46827228]
[1748344209914,0.01872764,109700.0,109690.0,6.47738829]
[1748344209915,0.00961237,109700.0,109690.0,6.47738829]
[1748344210362,0.00961237,109700.0,109690.0,5.20601029]
[1748344210828,0.01872755,109700.0,109690.0,6.47638829]
[1748344211082,0.00961237,109700.0,109690.0,6.47638829]
[1748344211311,0.01061237,109700.0,109690.0,6.47938829]
[1748344211532,0.01061237,109700.0,109690.0,6.47838829]
[1748344211768,0.01972755,109700.0,109690.0,6.48038829]
[1748344211997,0.01972755,109700.0,109690.0,5.48466529]
[1748344212442,0.01061237,109700.0,109690.0,5.48466529]
[1748344212682,0.01972755,109700.0,109690.0,6.48038829]
[1748344213132,0.00149735,109700.0,109690.0,6.48038829]
[1748344213384,0.2020432,109700.0,109690.0,4.34660627]
[1748344213671,0.20204336,109700.0,109690.0,3.98534641]
[1748344213910,0.2111593,109700.0,109690.0,4.12775264]
[1748344214150,0.20204387,109700.0,109690.0,3.87081002]
[1748344214389,0.21115931,109700.0,109690.0,4.02763282]
[1748344214627,0.21115922,109700.0,109690.0,4.00940004]
[1748344214866,0.21115922,109700.0,109690.0,4.43219181]
[1748344215101,0.21115922,109700.0,109690.0,4.0145369]
[1748344215535,0.21115922,109700.0,109690.0,4.01453698]
[1748344215744,0.21115922,109700.0,109690.0,4.05537051]
[1748344215948,0.21115922,109700.0,109690.0,4.07187059]
[1748344216678,0.21115922,109700.0,109690.0,4.06275433]
[1748344216896,0.21115922,109700.0,109690.0,4.45697833]
[1748344218002,0.21115922,109700.0,109690.0,5.41178333]
[1748344218425,0.21115922,109700.0,109690.0,5.37213133]
[1748344218633,0.21115922,109700.0,109690.0,4.38678133]
[1748344218870,0.21115922,109700.0,109690.0,4.31280533]
[1748344219083,0.21115922,109700.0,109690.0,4.29630533]
[1748344219301,0.21115922,109700.0,109690.0,4.30542159]
[1748344219815,0.21115922,109700.0,109690.0,5.52074259]
[1748344220233,0.21115922,109700.0,109690.0,5.50934359]
[1748344221011,0.21115922,109700.0,109690.0,1.40120059]
[1748344221250,0.21115922,109700.0,109690.0,5.50981059]
[1748344221461,0.21115922,109700.0,109690.0,5.50069433]
[1748344221680,0.21115922,109700.0,109690.0,5.38532733]
[1748344221901,0.21115922,109700.0,109690.0,5.24334598]
[1748344222108,0.21115922,109700.0,109690.0,5.25246333]
[1748344222990,0.21115922,109700.0,109690.0,5.22139533]
[1748344223204,0.21115922,109700.0,109690.0,3.80704098]
[1748344223670,0.21115922,109700.0,109690.0,3.81615733]
[1748344223997,0.21115922,109700.0,109690.0,3.79792455]
[1748344224223,0.21115922,109700.0,109690.0,3.92724798]
[1748344224447,0.21115922,109700.0,109690.0,2.66862755]
[1748344224704,0.21115922,109700.0,109690.0,2.68686033]
[1748344225163,0.21115922,109700.0,109690.0,4.22341433]
[1748344225385,0.21115922,109700.0,109690.0,4.2089607]
[1748344225608,0.23394395,109700.0,109690.0,2.46547892]
[1748344225833,0.23394395,109700.0,109690.0,2.74283892]
[1748344226283,0.23394395,109700.0,109690.0,2.83560635]
[1748344226501,0.21794395,109700.0,109690.0,2.83560635]
[1748344227167,0.21794395,109700.0,109690.0,3.79510135]
[1748344228243,0.21794395,109700.0,109690.0,3.85185035]
[1748344228688,0.20204395,109700.0,109690.0,3.85185035]
[1748344228946,0.21115972,109700.0,109690.0,3.87008296]
[1748344229160,0.21115972,109700.0,109690.0,5.1796297]
[1748344229382,0.19292802,109700.0,109690.0,5.18874596]
[1748344229594,0.02884316,109700.0,109690.0,5.23046197]
[1748344229816,0.01972764,109700.0,109690.0,5.23046197]
[1748344230036,0.02884307,109700.0,109690.0,5.23046197]
[1748344230273,0.02884307,109700.0,109690.0,5.64113797]
[1748344231193,0.02884307,109700.0,109690.0,5.59800997]
[1748344231396,0.03795867,109700.0,109690.0,5.59800997]
[1748344231654,0.03795859,109700.0,109690.0,5.55199997]
[1748344232315,0.22938959,109700.0,109690.0,5.88760249]
[1748344232791,0.22939025,109700.0,109690.0,5.75323248]
[1748344233031,0.22939025,109700.0,109690.0,4.35205658]
[1748344233277,0.22939025,109700.0,109690.0,5.21591758]
[1748344233518,0.22939025,109700.0,109690.0,5.19332058]
[1748344234255,0.22939025,109700.0,109690.0,5.19255358]
[1748344234718,0.22939025,109700.0,109690.0,5.15360158]
[1748344235409,0.22939025,109700.0,109690.0,5.21520058]
[1748344235877,0.18431437,109710.0,109700.0,0.206631]
[1748344236101,0.21180783,109710.0,109700.0,3.31537347]
[1748344236333,0.21180783,109710.0,109700.0,3.65937339]
[1748344236601,0.21180783,109710.0,109700.0,3.64635039]
[1748344236817,0.21180783,109710.0,109700.0,3.50253439]
[1748344237040,0.21180783,109710.0,109700.0,3.17688639]
[1748344237271,0.21779323,109710.0,109700.0,2.84151912]
[1748344237484,0.21779323,109710.0,109700.0,2.85161489]
[1748344237921,0.21779323,109710.0,109700.0,2.94945389]